[Event "EWIRCC 2019"]
[Site "Monte-Carlo"]
[Date "2019.12.01"]
[Round "8.15"]
[White "Michna, Marta"]
[Black "Belenkaya, Dina"]
[Result "1/2-1/2"]
[ECO "D00"]
[WhiteElo "2366"]
[BlackElo "2302"]
[Annotator "ChessBase"]
[PlyCount "132"]
[EventDate "2019.11.28"]
[EventType "swiss"]
[EventCountry "MNC"]
[SourceTitle "playchess.com"]
[Source "ChessBase"]
[SourceQuality "1"]
[TimeControl "5400+30"]

1. d4 {[%emt 1:15:11]} d5 {[%emt 1:15:15]} 2. Bf4 {[%emt 0:00:22]} c5 {[%emt 0:00:21]} 3. e3 {[%emt 0:00:22]} Nc6 {[%emt 0:00:22]} 4. c3 {[%emt 0:00:21]} Nf6 {[%emt 0:00:21]} 5. Nd2 {[%emt 0:00:22]} Bf5 {[%emt 0:00:22]} 6. Qb3 {[%emt 0:01:00]} Qd7 {[%emt 0:00:27]} 7. Ngf3 {[%emt 0:00:27]} c4 {[%emt 0:00:45]} 8. Qd1 {[%emt 0:00:25]} b5 {[%emt 0:00:39]} 9. Be2 {[%emt 0:06:48]} e6 {[%emt 0:00:23]} 10. Nh4 {[%emt 0:00:37]} Bg6 {[%emt 0:00:29]} 11. O-O {[%emt 0:00:37]} Bd6 {[%emt 0:00:37]} 12. Re1 {[%emt 0:00:51]} a5 {[%emt 0:03:10]} 13. Rc1 {[%emt 0:03:47]} b4 {[%emt 0:01:44]} 14. Bxd6 {[%emt 0:00:42]} Qxd6 {[%emt 0:00:23]} 15. b3 {[%emt 0:00:21]} cxb3 {[%emt 0:02:38]} 16. axb3 {[%emt 0:01:41]} O-O {[%emt 0:01:07]} 17. Nxg6 {[%emt 0:00:25]} hxg6 {[%emt 0:00:26]} 18. c4 {[%emt 0:00:26]} Rfc8 {[%emt 0:01:47]} 19. Ra1 {[%emt 0:00:43]} Qe7 {[%emt 0:01:02]} 20. Bf3 {[%emt 0:00:47]} Ra7 {[%emt 0:00:36]} 21. Qb1 {[%emt 0:00:42]} g5 {[%emt 0:01:38]} 22. h3 {[%emt 0:00:26]} g6 {[%emt 0:00:26]} 23. Rc1 {[%emt 0:01:09]} Qd6 {[%emt 0:01:33]} 24. cxd5 {[%emt 0:01:42]} exd5 {[%emt 0:01:26]} 25. Rc5 {[%emt 0:00:21]} Ra6 {[%emt 0:02:43]} 26. Qd3 {[%emt 0:00:34]} Ne7 {[%emt 0:01:57]} 27. Raxa5 {[%emt 0:01:30]} Rxa5 {[%emt 0:00:25]} 28. Rxa5 {[%emt 0:00:22]} Rc1+ {[%emt 0:00:24]} 29. Nf1 {[%emt 0:00:20]} Rc3 {[%emt 0:00:26]} 30. Qd1 {[%emt 0:00:21]} Ne4 {[%emt 0:00:34]} 31. Bxe4 {[%emt 0:00:35]} dxe4 {[%emt 0:00:21]} 32. Ng3 {[%emt 0:00:55]} f5 {[%emt 0:00:30]} 33. d5 {[%emt 0:00:48]} Rd3 {[%emt 0:00:35]} 34. Qa1 {[%emt 0:00:21]} Kh7 {[%emt 0:00:48]} 35. Ra8 {[%emt 0:00:43]} Rc3 {[%emt 0:00:24]} 36. Qa7 {[%emt 0:00:32]} Rc7 {[%emt 0:00:38]} 37. Qd4 {[%emt 0:00:31]} Nc8 {[%emt 0:00:30]} 38. Ra4 {[%emt 0:00:29]} Rb7 {[%emt 0:00:35]} 39. Ra5 {[%emt 0:00:32]} Nb6 {[%emt 0:00:24]} 40. Rb5 {[%emt 0:00:25]} Rb8 {[%emt 0:00:30]} 41. Qxb4 {[%emt 0:00:29]} Qxb4 {[%emt 0:00:26]} 42. Rxb4 {[%emt 0:00:21]} Kg7 {[%emt 0:00:26]} 43. Ne2 {[%emt 0:00:25]} Kf6 {[%emt 0:00:25]} 44. Nd4 {[%emt 0:00:24]} Nd7 {[%emt 0:00:24]} 45. Rxb8 {[%emt 0:00:25]} Nxb8 {[%emt 0:00:21]} 46. Nc6 {[%emt 0:00:23]} Nd7 {[%emt 0:00:24]} 47. d6 {[%emt 0:00:41]} Ke6 {[%emt 0:00:22]} 48. Ne7 {[%emt 0:00:21]} Ne5 {[%emt 0:00:34]} 49. g4 {[%emt 0:00:40]} fxg4 {[%emt 0:00:24]} 50. hxg4 {[%emt 0:00:28]} Kxd6 {[%emt 0:00:21]} 51. Nc8+ {[%emt 0:00:22]} Kd7 {[%emt 0:00:26]} 52. Nb6+ {[%emt 0:00:21]} Kc6 {[%emt 0:00:22]} 53. Nc8 {[%emt 0:00:23]} Kd7 {[%emt 0:00:25]} 54. Nb6+ {[%emt 0:00:24]} Ke6 {[%emt 0:00:47]} 55. Kg2 {[%emt 0:00:42]} Nxg4 {[%emt 0:00:29]} 56. Nc4 {[%emt 0:00:24]} Kd5 {[%emt 0:00:28]} 57. Kg3 {[%emt 0:00:42]} Nf6 {[%emt 0:00:21]} 58. Nd2 {[%emt 0:00:40]} Kc5 {[%emt 0:00:25]} 59. f3 {[%emt 0:00:37]} exf3 {[%emt 0:00:22]} 60. Nxf3 {[%emt 0:00:21]} Ne4+ {[%emt 0:01:34]} 61. Kg4 {[%emt 0:00:25]} Kb4 {[%emt 0:00:26]} 62. Nxg5 {[%emt 0:00:45]} Nc3 {[%emt 0:00:35]} 63. Nf7 {[%emt 0:00:56]} Kxb3 {[%emt 0:01:02]} 64. Kg5 {[%emt 0:00:28]} Kc4 {[%emt 0:00:00]} 65. Ne5+ {[%emt 0:00:33]} Kd5 {[%emt 0:00:12]} 66. Nxg6 {[%emt 0:00:23]} Ke4 {[%emt 0:00:21]} 1/2-1/2

[Event "EWIRCC 2019"]
[Site "Monte-Carlo"]
[Date "2019.12.01"]
[Round "8.16"]
[White "Salimova, Nurgyul"]
[Black "Socko, Monika"]
[Result "1/2-1/2"]
[ECO "A25"]
[WhiteElo "2370"]
[BlackElo "2417"]
[Annotator "NA"]
[PlyCount "76"]
[EventDate "2019.11.28"]
[EventType "swiss"]
[EventCountry "MNC"]
[SourceTitle "playchess.com"]
[Source "ChessBase"]
[SourceQuality "1"]
[TimeControl "5400+30"]

1. c4 {[%emt 1:15:11]} e5 {[%emt 1:15:12]} 2. Nc3 {[%emt 0:00:26]} Nc6 {[%emt 0:00:21]} 3. g3 {[%emt 0:00:22]} g6 {[%emt 0:00:25]} 4. Bg2 {[%emt 0:00:21]} Bg7 {[%emt 0:00:22]} 5. e3 {[%emt 0:00:35]} Nge7 {[%emt 0:00:26]} 6. Nge2 {[%emt 0:00:22]} O-O {[%emt 0:00:44]} 7. O-O {[%emt 0:00:23]} d6 {[%emt 0:00:22]} 8. d3 {[%emt 0:00:39]} Be6 {[%emt 0:00:37]} 9. Nd5 {[%emt 0:01:51]} Qd7 {[%emt 0:00:59]} 10. Nxe7+ {[%emt 0:01:12]} Qxe7 {[%emt 0:00:23]} 11. Rb1 {[%emt 0:00:28]} a5 {[%emt 0:00:27]} 12. Nc3 {[%emt 0:00:52]} Qd7 {[%emt 0:02:52]} 13. Nd5 {[%emt 0:00:30]} Rac8 {[%emt 0:01:24]} 14. a3 {[%emt 0:00:30]} Bh3 {[%emt 0:00:39]} 15. b4 {[%emt 0:00:23]} Bxg2 {[%emt 0:00:23]} 16. Kxg2 {[%emt 0:00:21]} axb4 {[%emt 0:00:34]} 17. axb4 {[%emt 0:00:21]} Ra8 {[%emt 0:00:24]} 18. Bb2 {[%emt 0:01:42]} Ne7 {[%emt 0:00:26]} 19. Nxe7+ {[%emt 0:00:51]} Qxe7 {[%emt 0:00:21]} 20. Ra1 {[%emt 0:00:40]} h5 {[%emt 0:00:48]} 21. h4 {[%emt 0:00:41]} c6 {[%emt 0:01:11]} 22. Qb3 {[%emt 0:00:39]} Qd7 {[%emt 0:00:31]} 23. Rxa8 {[%emt 0:00:59]} Rxa8 {[%emt 0:00:21]} 24. Ra1 {[%emt 0:00:22]} Rxa1 {[%emt 0:00:41]} 25. Bxa1 {[%emt 0:00:21]} d5 {[%emt 0:00:22]} 26. Bb2 {[%emt 0:02:42]} Kh7 {[%emt 0:00:43]} 27. b5 {[%emt 0:03:32]} dxc4 {[%emt 0:01:27]} 28. dxc4 {[%emt 0:00:29]} Qf5 {[%emt 0:00:22]} 29. bxc6 {[%emt 0:00:39]} bxc6 {[%emt 0:00:31]} 30. Ba3 {[%emt 0:01:33]} e4 {[%emt 0:01:49]} 31. Bb2 {[%emt 0:01:46]} g5 {[%emt 0:02:22]} 32. hxg5 {[%emt 0:00:51]} Qxg5 {[%emt 0:00:22]} 33. Bxg7 {[%emt 0:00:23]} Qxg7 {[%emt 0:00:58]} 34. Qb6 {[%emt 0:00:58]} Qf6 {[%emt 0:00:26]} 35. Qc5 {[%emt 0:00:30]} Qf3+ {[%emt 0:01:47]} 36. Kg1 {[%emt 0:00:23]} Qd1+ {[%emt 0:00:21]} 37. Kg2 {[%emt 0:00:21]} Qf3+ {[%emt 0:00:22]} 38. Kg1 {[%emt 0:00:21]} Qd1+ {[%emt 0:00:21]} 1/2-1/2

[Event "EWIRCC 2019"]
[Site "Monte-Carlo"]
[Date "2019.12.01"]
[Round "8.17"]
[White "Chiburdanidze, Maia"]
[Black "Janzelj, Lara"]
[Result "1-0"]
[ECO "D11"]
[WhiteElo "2500"]
[BlackElo "2158"]
[Annotator "ChessBase"]
[PlyCount "62"]
[EventDate "2019.11.28"]
[EventType "swiss"]
[EventCountry "MNC"]
[SourceTitle "playchess.com"]
[Source "ChessBase"]
[SourceQuality "1"]
[TimeControl "5400+30"]

1. d4 {[%emt 1:15:12]} d5 {[%emt 1:15:11]} 2. Nf3 {[%emt 0:00:22]} Nf6 {[%emt 0:00:22]} 3. e3 {[%emt 0:00:23]} Bg4 {[%emt 0:00:31]} 4. h3 {[%emt 0:00:26]} Bh5 {[%emt 0:00:23]} 5. c4 {[%emt 0:00:34]} c6 {[%emt 0:00:26]} 6. Qb3 {[%emt 0:00:45]} Qb6 {[%emt 0:00:25]} 7. Ne5 {[%emt 0:01:59]} Nbd7 {[%emt 0:01:01]} 8. Nxd7 {[%emt 0:00:29]} Nxd7 {[%emt 0:00:29]} 9. cxd5 {[%emt 0:00:26]} Qa5+ {[%emt 0:03:46]} 10. Nc3 {[%emt 0:00:40]} Rb8 {[%emt 0:00:55]} 11. Bd2 {[%emt 0:01:13]} Qc7 {[%emt 0:00:44]} 12. Rc1 {[%emt 0:00:42]} Nf6 {[%emt 0:00:30]} 13. Qa4 {[%emt 0:01:26]} a5 {[%emt 0:01:09]} 14. Nb5 {[%emt 0:02:11]} Qd7 {[%emt 0:00:35]} 15. dxc6 {[%emt 0:01:44]} bxc6 {[%emt 0:00:22]} 16. Na3 {[%emt 0:00:26]} Ne4 {[%emt 0:01:05]} 17. Rxc6 {[%emt 0:01:38]} Nxd2 {[%emt 0:00:50]} 18. Rc8+ {[%emt 0:00:26]} Rxc8 {[%emt 0:00:22]} 19. Bb5 {[%emt 0:00:21]} Rd8 {[%emt 0:00:52]} 20. Kxd2 {[%emt 0:00:27]} e6 {[%emt 0:00:22]} 21. Rc1 {[%emt 0:00:25]} Bb4+ {[%emt 0:00:24]} 22. Kd3 {[%emt 0:00:31]} Ke7 {[%emt 0:00:34]} 23. Bxd7 {[%emt 0:00:27]} Rxd7 {[%emt 0:00:22]} 24. Nb5 {[%emt 0:00:53]} e5 {[%emt 0:01:01]} 25. a3 {[%emt 0:00:38]} Bd6 {[%emt 0:00:42]} 26. Nxd6 {[%emt 0:00:32]} Rxd6 {[%emt 0:00:23]} 27. Qxa5 {[%emt 0:00:29]} Bg6+ {[%emt 0:00:25]} 28. Ke2 {[%emt 0:00:32]} exd4 {[%emt 0:00:27]} 29. Qc7+ {[%emt 0:01:38]} Ke6 {[%emt 0:00:36]} 30. exd4 {[%emt 0:00:23]} Re8 {[%emt 0:00:31]} 31. Kf3 {[%emt 0:00:31]} Kd5 {[%emt 0:09:45] Ke4+} 1-0

[Event "EWIRCC 2019"]
[Site "Monte-Carlo"]
[Date "2019.12.01"]
[Round "8.18"]
[White "Buksa, Nataliya"]
[Black "Petrova, Irina"]
[Result "0-1"]
[ECO "B09"]
[WhiteElo "2410"]
[BlackElo "2109"]
[Annotator "ChessBase"]
[PlyCount "90"]
[EventDate "2019.11.28"]
[EventType "swiss"]
[EventCountry "MNC"]
[SourceTitle "playchess.com"]
[Source "ChessBase"]
[SourceQuality "1"]
[TimeControl "5400+30"]

1. e4 {[%emt 1:15:11]} d6 {[%emt 1:15:11]} 2. d4 {[%emt 0:00:21]} Nf6 {[%emt 0:00:22]} 3. Nc3 {[%emt 0:00:21]} g6 {[%emt 0:00:21]} 4. f4 {[%emt 0:00:21]} Bg7 {[%emt 0:00:22]} 5. Nf3 {[%emt 0:00:21]} O-O {[%emt 0:00:28]} 6. e5 {[%emt 0:00:21]} dxe5 {[%emt 0:00:24]} 7. fxe5 {[%emt 0:00:21]} Nd5 {[%emt 0:00:21]} 8. Bc4 {[%emt 0:00:21]} Nxc3 {[%emt 0:00:22]} 9. bxc3 {[%emt 0:00:21]} c5 {[%emt 0:00:21]} 10. O-O {[%emt 0:00:40]} Bg4 {[%emt 0:00:26]} 11. Rb1 {[%emt 0:00:21]} Nc6 {[%emt 0:00:38]} 12. h3 {[%emt 0:01:15]} Bxf3 {[%emt 0:00:23]} 13. Qxf3 {[%emt 0:00:21]} cxd4 {[%emt 0:00:24]} 14. Bxf7+ {[%emt 0:00:21]} Kh8 {[%emt 0:00:21]} 15. e6 {[%emt 0:00:28]} dxc3 {[%emt 0:04:59]} 16. Rxb7 {[%emt 0:00:22]} Qc8 {[%emt 0:00:48]} 17. Rb1 {[%emt 0:02:20]} Nd4 {[%emt 0:01:43]} 18. Qe4 {[%emt 0:00:21]} Rb8 {[%emt 0:00:57]} 19. Bh6 {[%emt 0:11:36]} Ne2+ {[%emt 0:04:09]} 20. Qxe2 {[%emt 0:00:25]} Bxh6 {[%emt 0:00:22]} 21. Qf2 {[%emt 0:00:52]} Rxb1 {[%emt 0:00:50]} 22. Rxb1 {[%emt 0:00:21]} Qc7 {[%emt 0:01:36]} 23. Qh4 {[%emt 0:02:09]} Qc5+ {[%emt 0:00:21]} 24. Kh1 {[%emt 0:00:22]} Bg5 {[%emt 0:00:24]} 25. Qe4 {[%emt 0:00:27]} Bf6 {[%emt 0:00:25]} 26. Rd1 {[%emt 0:01:04]} Kg7 {[%emt 0:00:27]} 27. a4 {[%emt 0:00:25]} Rb8 {[%emt 0:00:39]} 28. Rf1 {[%emt 0:00:36]} Qe5 {[%emt 0:00:50]} 29. Qd3 {[%emt 0:00:30]} Qd4 {[%emt 0:00:44]} 30. Qe2 {[%emt 0:00:22]} Rb4 {[%emt 0:01:15]} 31. a5 {[%emt 0:00:40]} Qe5 {[%emt 0:00:44]} 32. Qf3 {[%emt 0:00:38]} Qb8 {[%emt 0:01:16]} 33. a6 {[%emt 0:00:25]} Rb1 {[%emt 0:00:24]} 34. g4 {[%emt 0:01:10]} Rxf1+ {[%emt 0:00:28]} 35. Qxf1 {[%emt 0:00:20]} Qg3 {[%emt 0:00:25]} 36. Qg2 {[%emt 0:00:29]} Qe1+ {[%emt 0:00:31]} 37. Qg1 {[%emt 0:00:21]} Qe4+ {[%emt 0:00:44]} 38. Qg2 {[%emt 0:00:21]} Qf4 {[%emt 0:00:44]} 39. Qe2 {[%emt 0:00:48]} Qg3 {[%emt 0:01:11]} 40. Qg2 {[%emt 0:00:24]} Qe3 {[%emt 0:00:41]} 41. Qf1 {[%emt 0:01:05]} Qd2 {[%emt 0:01:06]} 42. Qg2 {[%emt 0:00:23]} Qd1+ {[%emt 0:00:51]} 43. Qg1 {[%emt 0:00:30]} Qxc2 {[%emt 0:00:36]} 44. Be8 {[%emt 0:00:28]} Qe4+ {[%emt 0:00:26]} 45. Qg2 {[%emt 0:00:29]} Qxg2+ {[%emt 0:00:23]} 0-1

[Event "EWIRCC 2019"]
[Site "Monte-Carlo"]
[Date "2019.12.01"]
[Round "8.19"]
[White "Gaprindashvili, Nona"]
[Black "Ovod, Evgenija"]
[Result "1-0"]
[ECO "D56"]
[WhiteElo "2275"]
[BlackElo "2347"]
[Annotator "NA RC"]
[PlyCount "71"]
[EventDate "2019.11.28"]
[EventType "swiss"]
[EventCountry "MNC"]
[SourceTitle "playchess.com"]
[Source "ChessBase"]
[SourceQuality "1"]
[TimeControl "5400+30"]

1. d4 {[%emt 1:15:13]} d5 {[%emt 1:15:11]} 2. c4 {[%emt 0:00:20]} e6 {[%emt 0:00:21]} 3. Nf3 {[%emt 0:00:22]} Nf6 {[%emt 0:00:21]} 4. Bg5 {[%emt 0:00:26]} Be7 {[%emt 0:00:29]} 5. e3 {[%emt 0:00:22]} O-O {[%emt 0:00:40]} 6. Nc3 {[%emt 0:00:26]} h6 {[%emt 0:00:23]} 7. Bh4 {[%emt 0:00:22]} Ne4 {[%emt 0:00:26]} 8. Bxe7 {[%emt 0:00:28]} Qxe7 {[%emt 0:00:26]} 9. Qc2 {[%emt 0:00:28]} Nxc3 {[%emt 0:00:27]} 10. Qxc3 {[%emt 0:00:23]} dxc4 {[%emt 0:01:09]} 11. Qxc4 {[%emt 0:00:40]} b6 {[%emt 0:00:44]} 12. Rc1 {[%emt 0:00:29]} c6 {[%emt 0:03:00]} 13. Be2 {[%emt 0:01:02]} Ba6 {[%emt 0:00:45]} 14. Qc3 {[%emt 0:00:33]} Bxe2 {[%emt 0:00:40]} 15. Kxe2 {[%emt 0:00:22]} Rc8 {[%emt 0:00:26]} 16. Rhd1 {[%emt 0:00:43]} Nd7 {[%emt 0:02:37]} 17. Kf1 {[%emt 0:06:12]} c5 {[%emt 0:00:23]} 18. b4 {[%emt 0:01:17]} cxd4 {[%emt 0:04:17]} 19. Qxc8+ {[%emt 0:00:28]} Rxc8 {[%emt 0:00:21]} 20. Rxc8+ {[%emt 0:00:23]} Kh7 {[%emt 0:00:22]} 21. Rc7 {[%emt 0:02:34]} Qxb4 {[%emt 0:00:23]} 22. Nxd4 {[%emt 0:00:45]} Nf6 {[%emt 0:01:00]} 23. Rxf7 {[%emt 0:00:50]} Qc4+ {[%emt 0:00:44]} 24. Ne2 {[%emt 0:01:36]} Qxa2 {[%emt 0:01:14]} 25. Rc1 {[%emt 0:00:20]} Nd5 {[%emt 0:01:39]} 26. e4 {[%emt 0:00:32]} Nb4 {[%emt 0:00:23]} 27. Rcc7 {[%emt 0:03:04]} Qa1+ {[%emt 0:02:21]} 28. Nc1 {[%emt 0:00:22]} a5 {[%emt 0:00:28]} 29. f4 {[%emt 0:01:08]} Kg6 {[%emt 0:02:11]} 30. f5+ {[%emt 0:01:24]} exf5 {[%emt 0:00:32]} 31. exf5+ {[%emt 0:00:22]} Kg5 {[%emt 0:00:26]} 32. Rxg7+ {[%emt 0:00:49]} Kxf5 {[%emt 0:00:21]} 33. g4+ {[%emt 0:01:00]} Ke4 {[%emt 0:00:52]} 34. Kg2 {[%emt 0:00:41]} Nd5 {[%emt 0:00:41]} 35. Rc4+ {[%emt 0:00:22]} Ke5 {[%emt 0:00:47]} 36. Rg6 {[%emt 0:01:12] Ke4 Rg7+ Ke5 Kh3} 1-0

[Event "EWIRCC 2019"]
[Site "Monte-Carlo"]
[Date "2019.12.01"]
[Round "9.1"]
[White "Stefanova, Antoaneta"]
[Black "Girya, Olga"]
[Result "0-1"]
[ECO "A07"]
[WhiteElo "2481"]
[BlackElo "2476"]
[Annotator "ChessBase"]
[PlyCount "111"]
[EventDate "2019.11.28"]
[EventType "swiss"]
[EventCountry "MNC"]
[SourceTitle "playchess.com"]
[Source "ChessBase"]
[SourceQuality "1"]
[TimeControl "5400+30"]

1. Nf3 {[%emt 1:15:11]} d5 {[%emt 1:15:11]} 2. g3 {[%emt 0:00:22]} c6 {[%emt 0:00:21]} 3. Bg2 {[%emt 0:00:23]} Bg4 {[%emt 0:00:21]} 4. O-O {[%emt 0:00:26]} Nf6 {[%emt 0:00:22]} 5. d3 {[%emt 0:00:23]} Nbd7 {[%emt 0:00:22]} 6. Qe1 {[%emt 0:00:29]} e5 {[%emt 0:00:21]} 7. h3 {[%emt 0:00:30]} Bh5 {[%emt 0:00:23]} 8. e4 {[%emt 0:00:22]} Bc5 {[%emt 0:00:41]} 9. exd5 {[%emt 0:04:04]} Bxf3 {[%emt 0:00:34]} 10. Bxf3 {[%emt 0:00:21]} Nxd5 {[%emt 0:00:22]} 11. a3 {[%emt 0:04:49]} a5 {[%emt 0:02:28]} 12. Nc3 {[%emt 0:01:09]} Nxc3 {[%emt 0:00:25]} 13. Qxc3 {[%emt 0:00:21]} O-O {[%emt 0:00:31]} 14. Be3 {[%emt 0:01:10]} Bxe3 {[%emt 0:02:19]} 15. fxe3 {[%emt 0:00:22]} Qg5 {[%emt 0:00:24]} 16. Kf2 {[%emt 0:00:59]} f5 {[%emt 0:05:42]} 17. Qb3+ {[%emt 0:02:00]} Kh8 {[%emt 0:00:21]} 18. Qxb7 {[%emt 0:00:42]} Nf6 {[%emt 0:01:30]} 19. Qxc6 {[%emt 0:02:18]} e4 {[%emt 0:01:16]} 20. Be2 {[%emt 0:01:15]} Rac8 {[%emt 0:01:06]} 21. Qa4 {[%emt 0:00:24]} Nd5 {[%emt 0:01:15]} 22. Qd4 {[%emt 0:00:32]} Rfd8 {[%emt 0:00:37]} 23. h4 {[%emt 0:01:47]} Qh6 {[%emt 0:00:38]} 24. Rac1 {[%emt 0:00:34]} Nb4 {[%emt 0:01:32]} 25. Qa7 {[%emt 0:01:10]} Nxc2 {[%emt 0:00:59]} 26. Rfd1 {[%emt 0:00:36]} Rf8 {[%emt 0:01:33]} 27. Rd2 {[%emt 0:00:32]} exd3 {[%emt 0:01:33]} 28. Rxd3 {[%emt 0:00:36]} f4 {[%emt 0:00:33]} 29. exf4 {[%emt 0:00:25]} Rxf4+ {[%emt 0:00:27]} 30. Kg2 {[%emt 0:00:36]} Rff8 {[%emt 0:00:32]} 31. Rcd1 {[%emt 0:00:29]} Rce8 {[%emt 0:00:30]} 32. Bg4 {[%emt 0:00:31]} Ne3+ {[%emt 0:00:30]} 33. Rxe3 {[%emt 0:00:21]} Rxe3 {[%emt 0:00:23]} 34. Qxa5 {[%emt 0:00:29]} Qg6 {[%emt 0:00:36]} 35. Qg5 {[%emt 0:00:35]} Qe4+ {[%emt 0:00:23]} 36. Kh3 {[%emt 0:00:25]} Re1 {[%emt 0:00:41]} 37. Rxe1 {[%emt 0:00:22]} Qxe1 {[%emt 0:00:21]} 38. Qd5 {[%emt 0:00:25]} Qf1+ {[%emt 0:00:36]} 39. Qg2 {[%emt 0:00:22]} Qc4 {[%emt 0:00:21]} 40. Bf3 {[%emt 0:00:40]} Qd3 {[%emt 0:00:30]} 41. Be4 {[%emt 0:00:35]} Qd7+ {[%emt 0:00:21]} 42. g4 {[%emt 0:00:37]} Qd4 {[%emt 0:00:40]} 43. h5 {[%emt 0:00:38]} Rf2 {[%emt 0:00:33]} 44. Qg3 {[%emt 0:00:25]} Rxb2 {[%emt 0:00:38]} 45. Qf4 {[%emt 0:00:35]} Rb3+ {[%emt 0:00:31]} 46. Kh4 {[%emt 0:00:27]} Qd8+ {[%emt 0:00:23]} 47. g5 {[%emt 0:00:23]} Rxa3 {[%emt 0:00:36]} 48. h6 {[%emt 0:00:37]} Ra5 {[%emt 0:00:28]} 49. hxg7+ {[%emt 0:00:31]} Kxg7 {[%emt 0:00:21]} 50. Kg4 {[%emt 0:00:27]} Qe7 {[%emt 0:00:32]} 51. Bf5 {[%emt 0:00:32]} Rd5 {[%emt 0:00:41]} 52. Qc4 {[%emt 0:00:32]} Qd8 {[%emt 0:00:28]} 53. Qc3+ {[%emt 0:00:26]} Rd4+ {[%emt 0:00:21]} 54. Kh3 {[%emt 0:00:29]} Qd6 {[%emt 0:00:28]} 55. Qb2 {[%emt 0:00:35]} Qd5 {[%emt 0:00:35]} 56. Bb1 {[%emt 0:00:44]} 0-1

[Event "EWIRCC 2019"]
[Site "Monte-Carlo"]
[Date "2019.12.01"]
[Round "9.2"]
[White "Rogule, Laura"]
[Black "Kosteniuk, Alexandra"]
[Result "0-1"]
[ECO "E17"]
[WhiteElo "2293"]
[BlackElo "2483"]
[Annotator "ChessBase"]
[PlyCount "58"]
[EventDate "2019.11.28"]
[EventType "swiss"]
[EventCountry "MNC"]
[SourceTitle "playchess.com"]
[Source "ChessBase"]
[SourceQuality "1"]
[TimeControl "5400+30"]

1. c4 {[%emt 1:15:11]} Nf6 {[%emt 1:15:11]} 2. Nf3 {[%emt 0:00:28]} b6 {[%emt 0:00:21]} 3. d4 {[%emt 0:01:20]} e6 {[%emt 0:00:23]} 4. g3 {[%emt 0:00:25]} Bb7 {[%emt 0:00:21]} 5. Bg2 {[%emt 0:00:22]} Be7 {[%emt 0:00:22]} 6. O-O {[%emt 0:00:23]} O-O {[%emt 0:00:21]} 7. Re1 {[%emt 0:00:25]} d5 {[%emt 0:00:21]} 8. cxd5 {[%emt 0:01:53]} exd5 {[%emt 0:00:21]} 9. Bf4 {[%emt 0:03:57]} c5 {[%emt 0:00:26]} 10. Ne5 {[%emt 0:01:13]} Nbd7 {[%emt 0:00:39]} 11. Nc3 {[%emt 0:01:14]} cxd4 {[%emt 0:01:13]} 12. Qxd4 {[%emt 0:03:26]} Nc5 {[%emt 0:01:19]} 13. Rad1 {[%emt 0:01:02]} Nce4 {[%emt 0:01:31]} 14. Nxe4 {[%emt 0:01:17]} Nxe4 {[%emt 0:01:29]} 15. Bxe4 {[%emt 0:01:33]} dxe4 {[%emt 0:00:22]} 16. Qd7 {[%emt 0:01:10]} Qxd7 {[%emt 0:02:24]} 17. Rxd7 {[%emt 0:00:28]} Bb4 {[%emt 0:00:21]} 18. Rc1 {[%emt 0:00:56]} Bc8 {[%emt 0:01:09]} 19. Rd4 {[%emt 0:00:40]} Bc5 {[%emt 0:00:21]} 20. Rxe4 {[%emt 0:00:24]} Re8 {[%emt 0:04:17]} 21. Ra4 {[%emt 0:00:46]} g5 {[%emt 0:00:36]} 22. Nd3 {[%emt 0:01:14]} gxf4 {[%emt 0:00:46]} 23. Nxf4 {[%emt 0:01:10]} Bb7 {[%emt 0:00:33]} 24. e3 {[%emt 0:00:42]} Rxe3 {[%emt 0:00:33]} 25. Nh5 {[%emt 0:00:30]} Re2 {[%emt 0:00:47]} 26. Rf1 {[%emt 0:00:31]} Rd8 {[%emt 0:01:00]} 27. Rg4+ {[%emt 0:00:30]} Kf8 {[%emt 0:00:24]} 28. Nf6 {[%emt 0:00:24]} Bxf2+ {[%emt 0:00:27]} 29. Rxf2 {[%emt 0:00:28]} Rd1+ {[%emt 0:00:21]} 0-1

[Event "EWIRCC 2019"]
[Site "Monte-Carlo"]
[Date "2019.12.01"]
[Round "9.3"]
[White "Batsiashvili, Nino"]
[Black "Cramling, Pia"]
[Result "1/2-1/2"]
[ECO "A17"]
[WhiteElo "2422"]
[BlackElo "2443"]
[Annotator "NA"]
[PlyCount "82"]
[EventDate "2019.11.28"]
[EventType "swiss"]
[EventCountry "MNC"]
[SourceTitle "playchess.com"]
[Source "ChessBase"]
[SourceQuality "1"]
[TimeControl "5400+30"]

1. c4 {[%emt 1:15:11]} e6 {[%emt 1:15:25]} 2. Nf3 {[%emt 0:00:48]} d5 {[%emt 0:01:03]} 3. e3 {[%emt 0:00:22]} Nf6 {[%emt 0:00:22]} 4. Nc3 {[%emt 0:00:21]} b6 {[%emt 0:00:37]} 5. b3 {[%emt 0:00:54]} Bb7 {[%emt 0:00:22]} 6. Bb2 {[%emt 0:00:21]} Nbd7 $11 {[%emt 0:00:44]} 7. cxd5 {[%emt 0:01:01]} exd5 {[%emt 0:00:24]} 8. d4 {[%emt 0:00:54]} a6 {[%emt 0:00:30]} 9. g3 {[%emt 0:00:31]} Bd6 {[%emt 0:00:32]} 10. Bg2 {[%emt 0:00:22]} O-O {[%emt 0:00:24]} 11. O-O {[%emt 0:00:24]} Qe7 {[%emt 0:00:39]} 12. Nh4 {[%emt 0:01:17]} Qe6 {[%emt 0:00:56]} 13. Qd3 {[%emt 0:00:45]} Rfe8 {[%emt 0:00:45]} 14. Ne2 {[%emt 0:01:09]} a5 {[%emt 0:01:17]} 15. Rfe1 {[%emt 0:00:41]} g6 {[%emt 0:02:11]} 16. Nc3 {[%emt 0:01:06]} Ne4 {[%emt 0:01:46]} 17. Nf3 {[%emt 0:01:15]} Qe7 {[%emt 0:02:14]} 18. Qc2 {[%emt 0:00:36]} Nxc3 {[%emt 0:01:10]} 19. Bxc3 {[%emt 0:00:21]} Rec8 {[%emt 0:00:51]} 20. Rad1 {[%emt 0:01:07]} Re8 {[%emt 0:00:30]} 21. Nd2 {[%emt 0:01:21]} f5 {[%emt 0:00:43]} 22. Nc4 {[%emt 0:01:01]} Bb4 {[%emt 0:00:22]} 23. f4 {[%emt 0:01:33]} Nf6 {[%emt 0:02:45]} 24. Ne5 {[%emt 0:00:25]} Ne4 {[%emt 0:00:27]} 25. Bxb4 {[%emt 0:01:14]} axb4 {[%emt 0:00:26]} 26. Bxe4 {[%emt 0:00:26]} fxe4 {[%emt 0:00:25]} 27. g4 {[%emt 0:00:23]} c5 {[%emt 0:02:01]} 28. Qg2 {[%emt 0:00:38]} Rec8 {[%emt 0:00:36]} 29. Kh1 {[%emt 0:01:51]} cxd4 {[%emt 0:00:32]} 30. Rxd4 {[%emt 0:00:37]} Qh4 {[%emt 0:00:55]} 31. Red1 {[%emt 0:00:42]} Rc3 {[%emt 0:00:24]} 32. g5 {[%emt 0:01:19]} Rxe3 {[%emt 0:00:36]} 33. Qd2 {[%emt 0:01:20]} Qxf4 {[%emt 0:01:26]} 34. Rxd5 {[%emt 0:00:21]} Re1+ {[%emt 0:01:12]} 35. Qxe1 {[%emt 0:00:50]} e3 {[%emt 0:00:24]} 36. Kg1 {[%emt 0:00:50]} Bxd5 {[%emt 0:00:45]} 37. Rxd5 {[%emt 0:00:22]} Rxa2 {[%emt 0:00:42]} 38. Rd8+ {[%emt 0:00:50]} Kg7 {[%emt 0:00:21]} 39. Rd7+ {[%emt 0:00:21]} Kg8 {[%emt 0:00:22]} 40. Rd8+ {[%emt 0:01:01]} Kg7 {[%emt 0:00:21]} 41. Rd7+ {[%emt 0:00:21]} Kg8 {[%emt 0:00:21]} 1/2-1/2